bitfinex/quotes_BTCUSD_20250615
["timestamp","ask_amount","ask_price","bid_price","bid_amount"]
[1749998141798,0.93064414,105620.0,105610.0,0.41238428]
[1749998141986,0.93064405,105620.0,105610.0,0.41438428]
[1749998142207,0.93064405,105620.0,105610.0,0.37655337]
[1749998142430,0.94011159,105620.0,105610.0,0.37655337]
[1749998142660,0.93064405,105620.0,105610.0,0.37655337]
[1749998143916,0.93003187,105620.0,105610.0,0.37655337]
[1749998144103,0.92117669,105620.0,105610.0,0.37655337]
[1749998144364,0.39106344,105620.0,105610.0,0.37655337]
[1749998144580,0.38220827,105620.0,105610.0,0.37655337]
[1749998144796,0.39106351,105620.0,105610.0,0.37655337]
[1749998145069,0.3815964,105620.0,105610.0,0.41565337]
[1749998145300,0.37274118,105620.0,105610.0,0.45348428]
[1749998145516,0.38159672,105620.0,105610.0,0.45348428]
[1749998145740,0.38159686,105620.0,105610.0,0.4251111]
[1749998145955,0.38159677,105620.0,105610.0,0.4251111]
[1749998146174,0.37274118,105620.0,105610.0,0.4251111]
[1749998146403,0.38159668,105620.0,105610.0,0.4251111]
[1749998146624,0.38159668,105620.0,105610.0,0.45347846]
[1749998146845,0.38159665,105620.0,105610.0,0.45347846]
[1749998147066,0.38159565,105620.0,105610.0,0.45347846]
[1749998147281,0.03274118,105620.0,105610.0,0.41564755]
[1749998147731,0.6276341,105630.0,105620.0,0.21776096]
[1749998147957,0.6276341,105630.0,105620.0,0.40515708]
[1749998148178,0.62763401,105630.0,105620.0,0.40515708]
[1749998148399,0.63648795,105630.0,105620.0,0.39568981]
[1749998148607,0.66059759,105630.0,105620.0,0.39568981]
[1749998148848,0.67006441,105630.0,105620.0,0.39568981]
[1749998149092,0.67891832,105630.0,105620.0,0.39568981]
[1749998149520,0.84993835,105630.0,105620.0,0.18739648]
[1749998149740,0.66059821,105630.0,105620.0,0.40515744]
[1749998149963,0.6789192,105630.0,105620.0,0.40515744]
[1749998150188,0.67891948,105630.0,105620.0,0.39568999]
[1749998150408,0.67891954,105630.0,105620.0,0.38622245]
[1749998150628,1.01891953,105630.0,105620.0,0.38622245]
[1749998150815,1.01006521,105630.0,105620.0,0.39568999]
[1749998151053,1.01893788,105630.0,105620.0,0.39568999]
[1749998151273,1.01893788,105630.0,105620.0,0.40515744]
[1749998151274,1.01006521,105630.0,105620.0,0.40515744]
[1749998151457,1.00059821,105630.0,105620.0,0.40515744]
[1749998151718,1.00947085,105630.0,105620.0,0.40515744]
[1749998151930,1.00059821,105630.0,105620.0,0.40515744]
[1749998152152,1.00059821,105630.0,105620.0,0.4146248]
[1749998152382,1.00059821,105630.0,105620.0,0.40515744]
[1749998152827,1.19881314,105630.0,105620.0,0.38622245]
[1749998153053,1.18993835,105630.0,105620.0,0.38622245]
[1749998153271,1.19881313,105630.0,105620.0,0.38622245]
[1749998153488,1.19881321,105630.0,105620.0,0.38622245]
[1749998153943,1.18993835,105630.0,105620.0,0.38622245]
[1749998154157,1.18993835,105630.0,105620.0,0.37675482]
[1749998154352,1.19881321,105630.0,105620.0,0.38622245]
[1749998154969,1.19881321,105630.0,105620.0,0.02268885]
[1749998155233,1.17988037,105630.0,105620.0,0.22151473]
[1749998155468,1.17988037,105630.0,105620.0,0.38622245]
[1749998155912,1.17988037,105630.0,105620.0,0.37675473]
[1749998156569,1.17988036,105630.0,105620.0,0.38622245]
[1749998157017,1.17988035,105630.0,105620.0,0.37875473]
[1749998157236,1.17100551,105630.0,105620.0,0.37875473]
[1749998157456,1.17988054,105630.0,105620.0,0.37875473]
[1749998157677,1.17988056,105630.0,105620.0,0.36928692]
[1749998158010,1.17988056,105630.0,105620.0,0.24245008]
[1749998158105,1.17988056,105630.0,105620.0,0.22351473]
[1749998158327,1.17100551,105630.0,105620.0,0.37875473]
[1749998158551,1.17988056,105630.0,105620.0,0.37875473]
[1749998159246,1.17100551,105630.0,105620.0,0.37875473]
[1749998159477,1.17988056,105630.0,105620.0,0.36928692]
[1749998159698,1.17988047,105630.0,105620.0,0.38822254]
[1749998160147,1.17100551,105630.0,105620.0,0.38822254]
[1749998160377,1.17988055,105630.0,105620.0,0.38822263]
[1749998160636,1.17100551,105630.0,105620.0,0.36553378]
[1749998160867,1.17988055,105630.0,105620.0,0.36553378]
[1749998161097,1.17100551,105630.0,105620.0,0.36553378]
[1749998161365,1.17987356,105630.0,105620.0,0.38826772]
[1749998161590,1.17100551,105630.0,105620.0,0.37879991]
[1749998161829,1.17987356,105630.0,105620.0,0.38826772]
[1749998162700,1.17100551,105630.0,105620.0,0.39773535]
[1749998162933,1.17987355,105630.0,105620.0,0.39773544]
[1749998163155,1.17987355,105630.0,105620.0,0.24249544]
[1749998163156,1.17100551,105630.0,105620.0,0.24249544]
[1749998163377,1.17987356,105630.0,105620.0,0.38826772]
[1749998163601,1.17987365,105630.0,105620.0,0.38826772]
[1749998163825,1.17987397,105630.0,105620.0,0.22355991]
[1749998164052,1.17987397,105630.0,105620.0,0.37879991]
[1749998164285,1.26655653,105630.0,105620.0,0.17997394]
[1749998164718,1.26655642,105630.0,105620.0,0.17997394]
[1749998164943,1.1704072,105630.0,105620.0,0.02473394]
[1749998165156,1.16153887,105630.0,105620.0,0.17997394]
[1749998165372,1.16153887,105630.0,105620.0,0.02473394]
[1749998165373,5.90105571,105630.0,105620.0,0.02473394]
[1749998165594,5.90770643,105630.0,105620.0,0.02473394]
[1749998165839,5.89883868,105630.0,105620.0,0.17793394]
[1749998166086,5.89883854,105630.0,105610.0,0.21778072]
[1749998166302,0.34946718,105620.0,105610.0,0.4163426]
[1749998166521,0.34,105620.0,105610.0,0.5715426]
[1749998166734,0.35893445,105620.0,105610.0,0.5715426]
[1749998166946,0.34946709,105620.0,105610.0,0.6094325]
[1749998167164,0.35893436,105620.0,105610.0,0.6094325]
[1749998167375,0.35893427,105620.0,105610.0,0.6094325]
[1749998167588,0.36840163,105620.0,105610.0,0.6094325]
[1749998167809,0.35893427,105620.0,105610.0,0.6124325]
[1749998168457,0.36840163,105620.0,105610.0,0.6124325]
[1749998168672,0.36840163,105620.0,105610.0,0.5923325]
[1749998168886,0.35893427,105620.0,105610.0,0.5923325]
[1749998169102,0.8979026,105620.0,105610.0,0.5923325]
[1749998169323,0.88843542,105620.0,105610.0,0.5923325]
[1749998169538,0.34946709,105620.0,105610.0,0.5923325]
[1749998169784,0.88843542,105620.0,105610.0,0.5923325]
[1749998170232,0.89790269,105620.0,105610.0,0.5923325]
[1749998170660,0.89790269,105620.0,105610.0,0.5544426]
[1749998171357,0.91683768,105620.0,105610.0,0.24352795]
[1749998171577,1.25302051,105620.0,105610.0,0.05415195]
[1749998171795,1.22521097,105620.0,105610.0,0.05415195]
[1749998172015,1.22521097,105620.0,105610.0,0.18093453]
[1749998172246,1.13793649,105620.0,105610.0,0.18093453]
[1749998172700,1.12846885,105620.0,105610.0,0.02273453]
[1749998172928,1.12846885,105620.0,105610.0,0.17993453]
[1749998173140,1.11959412,105620.0,105610.0,0.17993453]
[1749998173356,1.11900112,105620.0,105610.0,0.17993453]
[1749998173578,1.11900113,105620.0,105610.0,0.17993453]
[1749998173920,1.20627562,105620.0,105610.0,0.02473453]
[1749998174140,1.20627562,105620.0,105610.0,0.17993453]
[1749998174357,1.20627562,105620.0,105610.0,0.37877933]
[1749998174572,1.21515034,105620.0,105610.0,0.38824804]
[1749998174789,1.21515034,105620.0,105610.0,0.37877933]
[1749998175234,1.11900112,105620.0,105610.0,0.38824804]
[1749998175452,1.13852947,105620.0,105610.0,0.39771657]
[1749998175882,1.13852947,105620.0,105610.0,0.39771666]
[1749998176129,1.14740419,105620.0,105610.0,0.24251666]
[1749998176588,1.13852947,105620.0,105610.0,0.39771666]
[1749998177124,1.13852947,105620.0,105610.0,0.38824804]
[1749998177347,1.23467869,105620.0,105610.0,0.38824804]
[1749998177569,1.23467869,105620.0,105610.0,0.39771666]
[1749998178510,1.13852947,105620.0,105610.0,0.40718519]
[1749998178744,1.13852947,105620.0,105610.0,0.41665363]
[1749998178874,0.9397035,105620.0,105610.0,0.43560189]
[1749998179080,0.9397035,105620.0,105610.0,0.44507015]
[1749998179282,0.9397035,105620.0,105610.0,0.43560153]
[1749998179497,0.94917059,105620.0,105610.0,0.42413327]
[1749998179690,0.94917059,105620.0,105610.0,0.43560153]
[1749998179922,0.94917059,105620.0,105610.0,0.42613327]
[1749998180128,0.94917059,105620.0,105610.0,0.41666492]
[1749998180302,0.94917059,105620.0,105610.0,0.43362133]
[1749998180510,0.94917059,105620.0,105610.0,0.44508968]
[1749998180903,0.9586384,105620.0,105610.0,0.43562133]
[1749998181141,0.94917059,105620.0,105610.0,0.44062133]
[1749998181343,0.95863831,105620.0,105610.0,0.44062133]
[1749998181545,0.95863831,105620.0,105610.0,0.45008968]
[1749998181712,0.95863831,105620.0,105610.0,0.44062133]
[1749998181918,1.14799638,105620.0,105610.0,0.27595316]
[1749998182160,1.1479971,105620.0,105610.0,0.24177716]
[1749998182442,1.1479971,105620.0,105610.0,0.23230836]
[1749998182651,1.13852965,105620.0,105610.0,0.07710836]
[1749998182820,5.85971102,105620.0,105610.0,0.18491927]
[1749998183026,5.8502433,105620.0,105610.0,0.18491927]
[1749998183851,5.8502433,105620.0,105610.0,0.17791927]
[1749998184275,5.8502433,105620.0,105610.0,0.18091927]
[1749998184924,5.8502433,105620.0,105610.0,0.02571927]
[1749998185358,5.8502433,105620.0,105610.0,0.18091927]
[1749998185567,5.81791075,105620.0,105610.0,0.21985678]
[1749998185781,5.81791075,105620.0,105610.0,0.23403278]
[1749998185782,1.08726175,105620.0,105610.0,0.23403278]
[1749998186236,1.08726175,105620.0,105610.0,0.37976407]
[1749998186466,1.08726175,105620.0,105610.0,0.38923278]
[1749998186679,1.08726175,105620.0,105610.0,0.22456407]
[1749998186898,1.11809412,105620.0,105610.0,0.18091927]
[1749998187542,1.1086264,105620.0,105610.0,0.18091927]
[1749998188937,1.1086264,105620.0,105610.0,0.02571927]
[1749998189155,1.1086264,105620.0,105610.0,0.18091927]
[1749998189877,1.1086264,105620.0,105610.0,0.02571927]
[1749998190348,1.1086264,105620.0,105610.0,0.19990927]
[1749998190567,1.0683264,105620.0,105610.0,0.19990927]
[1749998190788,1.0889264,105620.0,105610.0,0.19990927]
[1749998191011,1.1097264,105620.0,105610.0,0.19990927]
[1749998191236,1.11860072,105620.0,105610.0,0.19990927]
[1749998191468,1.1097264,105620.0,105610.0,0.04470927]
[1749998191702,1.1097264,105620.0,105610.0,0.19990927]
[1749998191926,1.11860072,105620.0,105610.0,0.04470927]
[1749998192143,1.11860072,105620.0,105610.0,0.19990927]
[1749998192277,1.1097264,105620.0,105610.0,0.19990927]
[1749998192502,1.11860072,105620.0,105610.0,0.19990927]
[1749998192923,1.11860068,105620.0,105610.0,0.04470927]
[1749998193127,1.1097264,105620.0,105610.0,0.19990927]
[1749998193531,1.11860074,105620.0,105610.0,0.19990927]
[1749998193953,1.1097264,105620.0,105610.0,0.19990927]
[1749998194162,1.07720061,105620.0,105610.0,0.19990927]
[1749998194370,1.0683264,105620.0,105610.0,0.19990927]
[1749998194576,1.0683264,105620.0,105610.0,0.04470927]
[1749998194789,1.0683264,105620.0,105610.0,0.20190927]
[1749998194999,1.07720066,105620.0,105610.0,0.20190927]
[1749998195227,1.0683264,105620.0,105610.0,0.20190927]
[1749998195465,1.0683264,105620.0,105610.0,0.05617807]
[1749998195685,1.0683264,105620.0,105610.0,0.39775407]
[1749998195889,1.07720072,105620.0,105610.0,0.25502278]
[1749998196098,1.0683264,105620.0,105610.0,0.41022278]
[1749998196583,1.0683264,105620.0,105610.0,0.4166914]
[1749998196843,1.07720073,105620.0,105610.0,0.41222278]
[1749998197074,1.0683264,105620.0,105610.0,0.41222278]
[1749998197284,1.07720072,105620.0,105610.0,0.40275407]
[1749998197494,1.07720184,105620.0,105610.0,0.41222278]
[1749998197702,1.07720219,105620.0,105610.0,0.21337807]
[1749998197942,1.0683264,105620.0,105610.0,0.21337807]
[1749998198136,1.07720229,105620.0,105610.0,0.24177716]
[1749998198364,1.07720071,105620.0,105610.0,0.44062187]
[1749998199124,1.07720074,105620.0,105610.0,0.43115316]
[1749998199403,1.0683264,105620.0,105610.0,0.3800348]
[1749998199862,1.0683264,105620.0,105610.0,0.38946351]
[1749998200105,1.0683264,105620.0,105610.0,0.39893213]
[1749998200377,1.0683264,105620.0,105610.0,0.40840066]
[1749998200577,1.0683264,105620.0,105610.0,0.24377213]
[1749998200789,1.0683264,105620.0,105610.0,0.39893213]
[1749998200998,1.13543514,105620.0,105610.0,0.23430351]
[1749998201211,0.52935807,105620.0,105610.0,0.39893213]
[1749998201424,1.13543514,105620.0,105610.0,0.39893213]
[1749998201995,1.13543514,105620.0,105610.0,0.24377213]
[1749998202207,1.13543514,105620.0,105610.0,0.39893213]
[1749998202842,1.16383821,105620.0,105610.0,0.24377213]
[1749998203019,1.16383821,105620.0,105610.0,0.25324066]
[1749998203243,1.17271262,105620.0,105610.0,0.39893213]
[1749998203443,1.16383821,105620.0,105610.0,0.40840066]
[1749998203619,1.16383821,105620.0,105610.0,0.39893213]
[1749998203802,1.16383821,105620.0,105610.0,0.40840066]
[1749998204002,1.16383821,105620.0,105610.0,0.25324066]
[1749998204273,1.16383821,105620.0,105610.0,0.39893213]
[1749998204665,1.16383821,105620.0,105610.0,0.40840066]
[1749998204965,1.16383821,105620.0,105610.0,0.39893213]
[1749998205540,1.16383821,105620.0,105610.0,0.38946351]
[1749998205952,1.16383821,105620.0,105610.0,0.39893213]
[1749998206851,1.16383821,105620.0,105610.0,0.40840066]
[1749998207070,1.16383821,105620.0,105610.0,0.39893213]
[1749998207561,1.16383821,105620.0,105610.0,0.38946351]
[1749998207770,0.34,105620.0,105610.0,0.41786874]
[1749998207989,0.34,105620.0,105610.0,1.06654581]
[1749998208198,0.64904065,105630.0,105620.0,0.26036069]
[1749998208859,0.98904065,105630.0,105620.0,0.26036069]
[1749998209069,0.38296358,105630.0,105620.0,0.26036069]
[1749998209519,0.38296358,105630.0,105620.0,0.26336069]
[1749998210966,0.38296358,105630.0,105620.0,0.28235069]
[1749998212735,0.38296358,105630.0,105620.0,0.27935069]
[1749998214104,0.38296358,105630.0,105620.0,0.28435069]
[1749998214505,0.38296358,105630.0,105620.0,0.28135069]
[1749998214781,0.39242978,105630.0,105620.0,0.28635069]
[1749998215019,0.04296358,105630.0,105620.0,0.28635069]
[1749998217915,0.04296358,105630.0,105620.0,0.92110812]
[1749998218271,0.04296358,105630.0,105620.0,0.96142812]
[1749998218519,0.04296358,105630.0,105620.0,0.42291245]
[1749998219111,0.04296358,105630.0,105620.0,0.96142812]
[1749998219313,0.01,105630.0,105620.0,0.96142812]
[1749998220920,0.01,105630.0,105620.0,0.95642812]
[1749998221322,0.01,105630.0,105620.0,0.95942812]
[1749998221771,0.01,105630.0,105620.0,0.95642812]
[1749998222196,0.01,105630.0,105620.0,0.96242812]
[1749998222412,0.01,105630.0,105620.0,0.96642812]
[1749998223198,0.01,105630.0,105620.0,0.99476007]
[1749998224040,0.01,105630.0,105620.0,0.6113644]
[1749998225250,0.01,105630.0,105620.0,0.4159244]
[1749998225454,0.01,105630.0,105620.0,0.6113244]
[1749998226860,0.01,105630.0,105620.0,0.58299245]
[1749998229773,0.01,105630.0,105620.0,1.12150812]
[1749998232437,0.01,105630.0,105620.0,0.58299245]
[1749998232864,0.01,105630.0,105620.0,0.41635001]
[1749998233307,0.01,105630.0,105620.0,0.61175001]
[1749998233522,0.01,105630.0,105620.0,0.60575001]
[1749998233734,0.01,105630.0,105620.0,0.61175001]
[1749998234045,0.01,105630.0,105620.0,0.60575001]
[1749998234258,0.01,105630.0,105620.0,0.59975001]
[1749998234471,0.01,105630.0,105620.0,0.61375001]
[1749998235351,0.01,105630.0,105620.0,0.58499245]
[1749998238130,0.01,105630.0,105620.0,0.38959245]
[1749998238353,0.01,105630.0,105620.0,0.58495245]
[1749998238771,0.01,105630.0,105620.0,0.38959245]
[1749998238974,0.01,105630.0,105620.0,0.58495245]
[1749998242606,0.01,105630.0,105620.0,0.57091245]
[1749998242988,0.01,105630.0,105620.0,0.57491245]
[1749998243869,0.01,105630.0,105620.0,0.58091245]
[1749998244960,0.01,105630.0,105620.0,0.67947508]
[1749998245437,0.01,105630.0,105620.0,0.66047051]
[1749998246407,0.01,105630.0,105620.0,0.60365767]
[1749998246647,0.01,105630.0,105620.0,1.21799075]
[1749998247266,0.02773174,105640.0,105630.0,0.21774007]
[1749998247546,0.05229738,105650.0,105640.0,0.20825381]
[1749998247791,0.05277122,105650.0,105640.0,0.45234721]
[1749998248445,0.04330619,105650.0,105640.0,0.46181278]
[1749998249103,0.0433061,105650.0,105640.0,0.46181278]
[1749998249534,0.07156051,105650.0,105640.0,0.46181278]
[1749998249865,0.07156051,105650.0,105640.0,0.47127826]
[1749998250289,0.07156051,105650.0,105640.0,0.47427826]
[1749998250492,0.06979284,105650.0,105640.0,0.47427826]
[1749998251412,0.07925787,105650.0,105640.0,0.46481278]
[1749998251630,0.07925787,105650.0,105640.0,0.45534721]
[1749998252045,0.80884551,105650.0,105640.0,0.40799114]
[1749998252259,0.81596094,105650.0,105640.0,0.41745698]
[1749998252695,0.91211016,105650.0,105640.0,0.05416299]
[1749998252916,0.92391584,105650.0,105640.0,0.20920299]
[1749998253120,0.91445079,105650.0,105640.0,0.20920299]
[1749998253565,0.90556865,105650.0,105640.0,0.20920299]
[1749998253986,0.91445073,105650.0,105640.0,0.20920299]
[1749998254403,0.90556865,105650.0,105640.0,0.05416299]
[1749998254610,0.81830151,105650.0,105640.0,0.18074522]
[1749998255028,0.81830151,105650.0,105640.0,0.19973522]
[1749998255249,0.80941943,105650.0,105640.0,0.38905744]
[1749998255446,0.81830167,105650.0,105640.0,0.22815299]
[1749998255652,0.80941943,105650.0,105640.0,0.22815299]
[1749998255862,0.81830161,105650.0,105640.0,0.22815299]
[1749998256296,0.81830161,105650.0,105640.0,0.2376191]
[1749998256523,0.80941943,105650.0,105640.0,0.22815299]
[1749998256737,0.8183016,105650.0,105640.0,0.2376191]
[1749998256944,0.80941943,105650.0,105640.0,0.2376191]
[1749998257143,0.8183016,105650.0,105640.0,0.2346191]
[1749998257383,0.8183016,105650.0,105640.0,0.43640734]
[1749998257714,0.8183016,105650.0,105640.0,0.22815299]
[1749998258137,0.8183016,105650.0,105640.0,0.22515299]
[1749998258478,0.27090376,105650.0,105640.0,0.2396191]
[1749998258681,0.80941943,105650.0,105640.0,0.44040734]
[1749998258948,0.09048135,105650.0,105640.0,0.44987327]
[1749998259172,0.62041232,105650.0,105640.0,0.44987327]
[1749998259394,0.60772683,105650.0,105640.0,0.45933902]
[1749998259623,0.79703113,105650.0,105640.0,0.45933911]
[1749998259867,0.78814895,105650.0,105640.0,0.45932945]
[1749998260078,0.79702771,105650.0,105640.0,0.4687952]
[1749998260343,0.79702773,105650.0,105640.0,0.4687952]
[1749998260563,0.79702784,105650.0,105640.0,0.4687952]
[1749998260770,0.797028,105650.0,105640.0,0.4687952]
[1749998260989,0.78814895,105650.0,105640.0,0.4687952]
[1749998261219,0.78814895,105650.0,105640.0,0.44986361]
[1749998261452,0.79702803,105650.0,105640.0,0.45932945]
[1749998261907,0.25851236,105650.0,105640.0,0.45932945]
[1749998262126,0.59884465,105650.0,105640.0,0.4687952]
[1749998262370,0.60866142,105650.0,105640.0,0.45932945]
[1749998262590,0.60866233,105650.0,105640.0,0.43091093]
[1749998262809,0.6086624,105650.0,105640.0,0.43091093]
[1749998263036,0.44775283,105650.0,105640.0,0.44037659]
[1749998263258,0.0372761,105650.0,105640.0,0.44037551]
[1749998263479,0.03016168,105650.0,105640.0,0.45932855]
[1749998263713,0.03016168,105650.0,105640.0,0.46879403]
[1749998264187,0.03016168,105650.0,105640.0,0.45932855]
[1749998264408,0.03016168,105650.0,105640.0,0.46879403]
[1749998264625,0.03962671,105650.0,105640.0,0.45932855]
[1749998265958,0.03962671,105650.0,105640.0,0.44986298]
[1749998266179,0.03962671,105650.0,105640.0,0.45932855]
[1749998266398,0.06368654,105650.0,105640.0,0.45932855]
[1749998266623,5.26916467,105650.0,105640.0,0.43091003]
[1749998266851,0.55744537,105650.0,105640.0,0.42144446]
[1749998267964,0.57637471,105650.0,105640.0,0.42144455]
[1749998268201,0.58583992,105650.0,105640.0,0.4119788]
[1749998268431,0.78402653,105650.0,105640.0,0.4119788]
[1749998268656,0.78402653,105650.0,105640.0,0.2569788]
[1749998268868,0.80409752,105650.0,105640.0,0.19420092]
[1749998269086,0.79521515,105650.0,105640.0,0.38352314]
[1749998269300,0.79521515,105650.0,105640.0,0.18473481]
[1749998269539,0.8040976,105650.0,105640.0,0.18473481]
[1749998269757,0.8040976,105650.0,105640.0,0.17973481]
[1749998269974,0.80410114,105650.0,105640.0,0.18920092]
[1749998270190,0.80410114,105650.0,105640.0,0.19220092]
[1749998270412,0.25669948,105650.0,105640.0,0.19020092]
[1749998270635,0.81944533,105650.0,105640.0,0.19020092]
[1749998270850,0.81944533,105650.0,105640.0,0.19966579]
[1749998271063,0.82833132,105650.0,105640.0,0.18073366]
[1749998271309,0.82833132,105650.0,105640.0,0.38898792]
[1749998271540,0.63902702,105650.0,105640.0,0.38898801]
[1749998271979,0.62956181,105650.0,105640.0,0.39845394]
[1749998272210,0.62956181,105650.0,105640.0,0.40791978]
[1749998272433,0.62956145,105650.0,105640.0,0.41438553]
[1749998272661,0.92121295,105650.0,105640.0,0.36705588]
[1749998272875,5.65186195,105650.0,105640.0,0.37005588]
[1749998273307,5.64297586,105650.0,105640.0,0.18073366]
[1749998273527,5.65186208,105650.0,105640.0,0.18073366]
[1749998274626,5.65186208,105650.0,105640.0,0.37005588]
[1749998274846,5.64239741,105650.0,105640.0,0.19972366]
[1749998275073,5.63351119,105650.0,105640.0,0.19972366]
[1749998275698,5.64239741,105650.0,105640.0,0.19972366]
[1749998276695,5.63351119,105650.0,105640.0,0.19972366]
[1749998277108,5.64239741,105650.0,105640.0,0.19972366]
[1749998277513,5.63351119,105650.0,105640.0,0.19972366]
[1749998277767,5.54950861,105650.0,105640.0,0.19972366]
[1749998278530,5.54950861,105650.0,105640.0,0.07314074]
[1749998278744,5.53116436,105650.0,105640.0,0.22810074]
[1749998278987,5.54004367,105650.0,105640.0,0.23756685]
[1749998279223,5.56672711,105650.0,105640.0,0.42388907]
[1749998279614,5.56672711,105650.0,105640.0,0.42688907]
[1749998279827,5.38688721,105650.0,105640.0,0.43635509]
[1749998280029,5.38688721,105650.0,105640.0,0.44582102]
[1749998280264,5.38688721,105650.0,105640.0,0.43635509]
[1749998280483,5.39635142,105650.0,105640.0,0.44582102]
[1749998280697,5.4058164,105650.0,105640.0,0.43635509]
[1749998280912,5.38747221,105650.0,105640.0,0.44582102]
[1749998281124,5.34010305,105650.0,105640.0,0.45528686]
[1749998281353,0.56274585,105650.0,105640.0,0.30032686]
[1749998281564,0.61021025,105650.0,105640.0,0.46475252]
[1749998281772,0.60097483,105650.0,105640.0,0.45528686]
[1749998281978,0.60097483,105650.0,105640.0,0.45228686]
[1749998282195,0.58167483,105650.0,105640.0,0.45228686]
[1749998282399,0.58167483,105650.0,105640.0,0.45528686]
[1749998282822,0.58167483,105650.0,105640.0,0.46475261]
[1749998283033,0.58167483,105650.0,105640.0,0.45528686]
[1749998283457,0.58167483,105650.0,105640.0,0.45228686]
[1749998283669,0.57221025,105650.0,105640.0,0.4522865]
[1749998283889,0.57221034,105650.0,105640.0,0.46175216]
[1749998284094,0.56274585,105650.0,105640.0,0.46375216]
[1749998284303,0.02423018,105650.0,105640.0,0.48265162]
[1749998284524,0.02423018,105650.0,105640.0,0.54014203]
[1749998284767,5.84133957,105660.0,105650.0,0.19876951]
[1749998284985,5.86040878,105660.0,105650.0,0.24995811]
[1749998285269,5.86040878,105660.0,105650.0,0.25942314]
[1749998285270,5.85153014,105660.0,105650.0,0.25942314]
[1749998285489,5.8319546,105660.0,105650.0,0.26815829]
[1749998285706,5.93815346,105660.0,105650.0,0.24049317]
[1749998285919,5.94703202,105660.0,105650.0,0.24049317]
[1749998286132,5.93815346,105660.0,105650.0,0.24995829]
[1749998286353,5.93815346,105660.0,105650.0,0.24349317]
[1749998286598,5.94703203,105660.0,105650.0,0.24349317]
[1749998286816,5.947032,105660.0,105650.0,0.24349317]
[1749998287001,5.93815346,105660.0,105650.0,0.24349317]
[1749998287219,5.94703204,105660.0,105650.0,0.24349317]
[1749998287437,5.94703195,105660.0,105650.0,0.25295829]
[1749998287649,5.93756788,105660.0,105650.0,0.26242332]
[1749998287876,5.92868932,105660.0,105650.0,0.27188826]
[1749998288098,5.96139959,105660.0,105650.0,0.26242332]
[1749998288317,5.95252119,105660.0,105650.0,0.26242332]
[1749998288579,5.96139957,105660.0,105650.0,0.26242332]
[1749998288827,5.52525035,105660.0,105650.0,0.30888826]
[1749998289079,5.52525018,105660.0,105650.0,0.30888826]
[1749998289338,4.95892874,105660.0,105650.0,0.31835311]
[1749998289583,0.21881614,105660.0,105650.0,0.34676956]
[1749998289803,0.21881614,105660.0,105650.0,0.38465997]
[1749998291613,0.21881614,105660.0,105650.0,0.53961997]
[1749998292395,0.21881614,105660.0,105650.0,0.50172956]
[1749998293714,0.21881614,105660.0,105650.0,0.45057882]
[1749998293923,0.21881614,105660.0,105650.0,0.50164547]
[1749998295864,0.21881614,105660.0,105650.0,0.53653588]
[1749998296346,0.21881614,105660.0,105650.0,0.53953588]
[1749998296790,0.21881614,105660.0,105650.0,0.54153588]
[1749998297646,0.21881614,105660.0,105650.0,0.53853588]
[1749998297917,0.21881614,105660.0,105650.0,0.54353588]
[1749998298465,0.21881614,105660.0,105650.0,0.50564547]
[1749998302249,0.21881614,105660.0,105650.0,0.50064547]
[1749998302691,0.21881614,105660.0,105650.0,0.49864547]
[1749998302903,0.21881614,105660.0,105650.0,0.50264547]
[1749998303583,0.21881614,105660.0,105650.0,0.50864547]
[1749998304802,0.75733181,105660.0,105650.0,0.50864547]
[1749998305318,0.76679541,105660.0,105650.0,0.50864502]
[1749998305767,0.75733181,105660.0,105650.0,0.50864502]
[1749998305993,0.88187237,105660.0,105650.0,0.46444095]
[1749998306217,0.87240832,105660.0,105650.0,0.49283595]
[1749998306663,0.88187192,105660.0,105650.0,0.2976952]
[1749998306880,0.9394661,105660.0,105650.0,0.4710752]
[1749998307095,0.94892988,105660.0,105650.0,0.4710752]
[1749998307313,0.94892988,105660.0,105650.0,0.45161062]
[1749998307526,0.94892988,105660.0,105650.0,0.45861062]
[1749998307986,0.95839384,105660.0,105650.0,0.29426595]
[1749998308209,0.96727862,105660.0,105650.0,0.44914595]
[1749998308425,0.95839384,105660.0,105650.0,0.45861071]
[1749998309291,0.95839384,105660.0,105650.0,0.46807538]
[1749998309517,0.95839384,105660.0,105650.0,0.48837538]
[1749998309729,0.8711294,105660.0,105650.0,0.48837475]
[1749998309949,0.85278066,105660.0,105650.0,0.48837475]
[1749998310163,0.87112931,105660.0,105650.0,0.48837475]
[1749998311066,0.86166544,105660.0,105650.0,0.48837475]
[1749998311277,0.85278066,105660.0,105650.0,0.48837475]
[1749998311490,0.8711294,105660.0,105650.0,0.48837475]
[1749998311709,0.86224462,105660.0,105650.0,0.48837475]
[1749998311933,0.88059345,105660.0,105650.0,0.47891017]
[1749998312173,0.97674267,105660.0,105650.0,0.47891017]
[1749998312397,0.97674267,105660.0,105650.0,0.4694455]
[1749998312607,0.24720703,105660.0,105650.0,0.47891008]
[1749998312828,0.86166544,105660.0,105650.0,0.47691008]
[1749998313047,0.85278066,105660.0,105650.0,0.47691008]
[1749998313265,0.82438977,105660.0,105650.0,0.47391008]
[1749998313518,0.82438977,105660.0,105650.0,0.47691008]
[1749998313741,0.82438977,105660.0,105650.0,0.48091008]
[1749998313964,0.82438977,105660.0,105650.0,0.51380049]
[1749998314180,0.82438977,105660.0,105650.0,0.51980049]
[1749998314640,0.21881614,105660.0,105650.0,0.51980049]
[1749998314863,0.21881614,105660.0,105650.0,1.12537412]
[1749998316178,0.21881614,105660.0,105650.0,0.51980049]
[1749998316404,0.21881614,105660.0,105650.0,1.12537412]
[1749998317755,0.21881614,105660.0,105650.0,1.09700376]
[1749998318416,0.21881614,105660.0,105650.0,1.21219297]
[1749998319962,0.21881614,105660.0,105650.0,1.23118297]
[1749998323091,0.21881614,105660.0,105650.0,1.16362106]
[1749998323513,0.19498427,105660.0,105650.0,1.16362106]
[1749998324949,0.00014203,105660.0,105650.0,1.16362106]
[1749998328875,0.56761509,105690.0,105670.0,0.21765765]
[1749998329079,0.01892371,105680.0,105670.0,0.24035394]
[1749998329293,0.01892371,105680.0,105670.0,0.39519394]
[1749998330207,0.01892371,105680.0,105670.0,0.39719394]
[1749998330422,0.00946181,105680.0,105670.0,0.39519394]
[1749998330637,0.04840829,105680.0,105670.0,0.39519394]
[1749998330852,0.00946181,105680.0,105670.0,0.39519394]
[1749998331073,0.0189238,105680.0,105670.0,0.39519394]
[1749998331279,0.00946181,105680.0,105670.0,0.39519394]
[1749998331497,0.0189238,105680.0,105670.0,0.39519403]
[1749998332153,0.00946181,105680.0,105670.0,0.39519403]
[1749998332364,0.0189238,105680.0,105670.0,0.44985682]
[1749998332572,0.0189238,105680.0,105670.0,0.44239403]
[1749998332818,0.02838588,105680.0,105670.0,0.44239412]
[1749998333045,0.0189238,105680.0,105670.0,0.45185691]
[1749998333476,0.0189238,105680.0,105670.0,0.451857]
[1749998333701,0.0189238,105680.0,105670.0,0.44239412]
[1749998333923,0.0189238,105680.0,105670.0,0.45185691]
[1749998334594,0.01892371,105680.0,105670.0,0.45185691]
[1749998335048,0.05702353,105680.0,105670.0,0.45185691]